[Event "19th Rochefort Chess Festival - Masters"]
[Site "Rochefort, France"]
[Date "2020.02.25"]
[Round "6.4"]
[White "Duboue, Peio"]
[Black "Korneev, Oleg"]
[Result "1/2-1/2"]
[TimeControl "1h30/40 - 30' + [30'']"]
[WhiteElo "2421"]
[BlackElo "2505"]

1. e4 {[%clk 01:29:10]} {[%emt 00:01:50]} e5 {[%clk 01:24:51]} {[%emt
00:06:09]} 2. Nf3 {[%clk 01:29:22]} {[%emt 00:00:17]} Nc6 {[%clk 01:25:19]}
{[%emt 00:00:03]} 3. Bc4 {[%clk 01:29:01]} {[%emt 00:00:50]} Bc5 {[%clk
01:25:36]} {[%emt 00:00:13]} 4. c3 {[%clk 01:28:00]} {[%emt 00:01:30]} Nf6
{[%clk 01:24:53]} {[%emt 00:01:13]} 5. d4 {[%clk 01:28:27]} {[%emt 00:00:04]}
exd4 {[%clk 01:25:15]} {[%emt 00:00:09]} 6. e5 {[%clk 01:28:47]} {[%emt
00:00:10]} d5 {[%clk 01:25:32]} {[%emt 00:00:13]} 7. Bb5 {[%clk 01:29:12]}
{[%emt 00:00:04]} Ne4 {[%clk 01:25:58]} {[%emt 00:00:04]} 8. cxd4 {[%clk
01:29:40]} {[%emt 00:00:02]} Bb6 {[%clk 01:25:57]} {[%emt 00:00:32]} 9. Nc3
{[%clk 01:30:05]} {[%emt 00:00:04]} Bg4 {[%clk 01:26:04]} {[%emt 00:00:24]} 10.
Be3 {[%clk 01:22:03]} {[%emt 00:08:31]} O-O {[%clk 01:25:44]} {[%emt 00:00:50]}
11. h3 {[%clk 01:21:44]} {[%emt 00:00:48]} Bh5 {[%clk 01:24:46]} {[%emt
00:01:30]} 12. Qc2 {[%clk 01:21:41]} {[%emt 00:00:32]} Nxc3 {[%clk 01:24:37]}
{[%emt 00:00:39]} 13. bxc3 {[%clk 01:21:04]} {[%emt 00:01:07]} f6 {[%clk
01:24:04]} {[%emt 00:01:04]} 14. exf6 {[%clk 01:18:44]} {[%emt 00:02:50]} Qxf6
{[%clk 01:24:13]} {[%emt 00:00:21]} 15. Be2 {[%clk 01:18:55]} {[%emt 00:00:18]}
Na5 {[%clk 01:24:32]} {[%emt 00:00:12]} 16. Ne5 {[%clk 01:13:04]} {[%emt
00:06:21]} Bxe2 {[%clk 01:23:57]} {[%emt 00:01:04]} 17. Qxe2 {[%clk 01:12:35]}
{[%emt 00:00:59]} c5 {[%clk 01:22:51]} {[%emt 00:01:37]} 18. Nd7 {[%clk
00:58:12]} {[%emt 00:14:52]} Qc6 {[%clk 01:21:44]} {[%emt 00:01:37]} 19. dxc5
{[%clk 00:39:01]} {[%emt 00:19:43]} Rfe8 {[%clk 01:18:36]} {[%emt 00:03:37]} 20.
Nxb6 {[%clk 00:37:29]} {[%emt 00:02:01]} axb6 {[%clk 01:18:52]} {[%emt
00:00:15]} 21. O-O {[%clk 00:37:07]} {[%emt 00:00:52]} bxc5 {[%clk 01:19:14]}
{[%emt 00:00:08]} 22. Qf3 {[%clk 00:30:52]} {[%emt 00:06:45]} Nc4 {[%clk
01:18:45]} {[%emt 00:00:59]} 23. Rad1 {[%clk 00:29:12]} {[%emt 00:02:10]} Re5
{[%clk 00:39:57]} {[%emt 00:39:18]} 24. Bf4 {[%clk 00:26:29]} {[%emt 00:03:12]}
Rf5 {[%clk 00:37:59]} {[%emt 00:02:29]} 25. Qg4 {[%clk 00:26:22]} {[%emt
00:00:38]} Qg6 {[%clk 00:27:13]} {[%emt 00:11:16]} 26. Bg3 {[%clk 00:22:06]}
{[%emt 00:04:45]} Rxa2 {[%clk 00:21:51]} {[%emt 00:05:52]} 27. Rfe1 {[%clk
00:17:28]} {[%emt 00:05:08]} Ra8 {[%clk 00:20:48]} {[%emt 00:01:34]} 28. Re7
{[%clk 00:17:07]} {[%emt 00:00:51]} Qxg4 {[%clk 00:15:48]} {[%emt 00:05:29]} 29.
hxg4 {[%clk 00:17:36]} {[%emt 00:00:01]} Rf7 {[%clk 00:16:14]} {[%emt
00:00:04]} 30. Rxf7 {[%clk 00:17:59]} {[%emt 00:00:07]} Kxf7 {[%clk 00:16:43]}
31. Rxd5 {[%clk 00:18:23]} {[%emt 00:00:07]} b6 {[%clk 00:17:04]} {[%emt
00:00:09]} 32. Rd7+ {[%clk 00:18:18]} {[%emt 00:00:35]} Kf8 {[%clk 00:16:53]}
{[%emt 00:00:41]} 33. f4 {[%clk 00:12:38]} {[%emt 00:06:09]} Ra3 {[%clk
00:16:19]} {[%emt 00:01:04]} 34. Rd3 {[%clk 00:04:57]} {[%emt 00:08:11]} Ra7
{[%clk 00:06:27]} {[%emt 00:10:22]} 35. f5 {[%clk 00:03:24]} {[%emt 00:02:03]}
h6 {[%clk 00:05:35]} {[%emt 00:01:23]} 36. Bf4 {[%clk 00:01:19]} {[%emt
00:02:34]} Ke8 {[%clk 00:03:55]} {[%emt 00:02:10]} 37. g5 {[%clk 00:01:06]}
{[%emt 00:00:42]} hxg5 {[%clk 00:03:44]} {[%emt 00:00:40]} 38. Bxg5 {[%clk
00:01:35]} {[%emt 00:00:02]} Rd7 {[%clk 00:04:10]} {[%emt 00:00:04]} 39. Rxd7
{[%clk 00:01:23]} {[%emt 00:00:42]} Kxd7 {[%clk 00:04:39]} {[%emt 00:00:01]} 40.
f6 {[%clk 00:01:18]} {[%emt 00:00:34]} gxf6 {[%clk 00:04:39]} {[%emt 00:00:31]}
41. Bxf6 {[%clk 00:01:46]} {[%emt 00:00:02]} Ke6 {[%clk 00:04:39]} {[%emt
00:00:30]} 42. Bg7 {[%clk 00:01:22]} {[%emt 00:00:54]} Kf7 {[%clk 00:04:04]}
{[%emt 00:01:05]} 43. Bh6 {[%clk 00:00:37]} {[%emt 00:01:15]} Nd6 {[%clk
00:01:11]} {[%emt 00:03:21]} 44. Bf4 {[%clk 00:26:35]} {[%emt 00:04:34]} Nb5
{[%clk 00:25:42]} {[%emt 00:06:00]} 45. Bd2 {[%clk 00:26:54]} {[%emt 00:00:10]}
Nd6 {[%clk 00:25:53]} {[%emt 00:00:19]} 46. Bf4 {[%clk 00:27:17]} {[%emt
00:00:06]} Nb5 {[%clk 00:26:20]} {[%emt 00:00:04]} 1/2-1/2



[ePGN "0.1;DGT LiveChess/2.2.5"]

[Event "19th Rochefort Chess Festival - Masters"]
[Site "Rochefort, France"]
[Date "2020.02.26"]
[Round "7.1"]
[White "Van Den Doel, Erik"]
[Black "Maiorov, Nikita"]
[Result "1/2-1/2"]
[TimeControl "1h30/40 - 30' + [30'']"]
[WhiteElo "2583"]
[BlackElo "2506"]

1. d4 {[%clk 01:30:57]} {[%emt 00:00:03]} Nf6 {[%clk 01:25:57]} {[%emt
00:05:03]} 2. Nf3 {[%clk 01:31:17]} {[%emt 00:00:09]} e6 {[%clk 01:26:00]}
{[%emt 00:00:27]} 3. Bf4 {[%clk 01:31:42]} {[%emt 00:00:05]} c5 {[%clk
01:25:30]} {[%emt 00:01:00]} 4. c3 {[%clk 01:32:07]} {[%emt 00:00:05]} b6
{[%clk 01:17:30]} {[%emt 00:08:30]} 5. e3 {[%clk 01:32:31]} {[%emt 00:00:05]}
Be7 {[%clk 01:16:22]} {[%emt 00:01:38]} 6. h3 {[%clk 01:32:49]} {[%emt
00:00:12]} O-O {[%clk 01:16:39]} {[%emt 00:00:13]} 7. Nbd2 {[%clk 01:30:58]}
{[%emt 00:02:21]} d6 {[%clk 01:15:32]} {[%emt 00:01:36]} 8. e4 {[%clk
01:17:10]} {[%emt 00:14:19]} cxd4 {[%clk 01:15:03]} {[%emt 00:00:59]} 9. cxd4
{[%clk 01:17:36]} {[%emt 00:00:04]} Ba6 {[%clk 01:10:17]} {[%emt 00:05:16]} 10.
Bxa6 {[%clk 01:15:59]} {[%emt 00:02:07]} Nxa6 {[%clk 01:10:41]} {[%emt
00:00:05]} 11. Qe2 {[%clk 01:05:15]} {[%emt 00:11:15]} Nc7 {[%clk 01:11:01]}
{[%emt 00:00:09]} 12. O-O {[%clk 01:05:28]} {[%emt 00:00:17]} Qd7 {[%clk
01:11:20]} {[%emt 00:00:12]} 13. Rfc1 {[%clk 01:00:17]} {[%emt 00:05:41]} Rfc8
{[%clk 01:11:37]} {[%emt 00:00:12]} 14. Rc3 {[%clk 00:59:14]} {[%emt 00:01:34]}
Nce8 {[%clk 01:06:07]} {[%emt 00:06:00]} 15. a4 {[%clk 00:47:17]} {[%emt
00:12:27]} Qb7 {[%clk 01:03:12]} {[%emt 00:03:24]} 16. Bg5 {[%clk 00:38:01]}
{[%emt 00:09:47]} Bf8 {[%clk 01:00:28]} {[%emt 00:03:13]} 17. Ne1 {[%clk
00:34:40]} {[%emt 00:03:51]} h6 {[%clk 00:51:50]} {[%emt 00:09:08]} 18. Bxf6
{[%clk 00:31:32]} {[%emt 00:03:38]} Nxf6 {[%clk 00:51:48]} {[%emt 00:00:32]} 19.
Rg3 {[%clk 00:31:11]} {[%emt 00:00:52]} 1/2-1/2

[Event "19th Rochefort Chess Festival - Masters"]
[Site "Rochefort, France"]
[Date "2020.02.26"]
[Round "7.3"]
[White "Shirazi, Kamran"]
[Black "Vorobiov, Evgeny E."]
[Result "0-1"]
[TimeControl "1h30/40 - 30' + [30'']"]
[WhiteElo "2362"]
[BlackElo "2520"]

1. c4 {[%clk 01:28:37]} {[%emt 00:02:22]} c5 {[%clk 01:28:24]} {[%emt
00:02:36]} 2. Nc3 {[%clk 01:27:28]} {[%emt 00:01:40]} g6 {[%clk 01:28:37]}
{[%emt 00:00:17]} 3. a3 {[%clk 01:26:32]} {[%emt 00:01:26]} Nc6 {[%clk
01:28:34]} {[%emt 00:00:33]} 4. h4 {[%clk 01:25:27]} {[%emt 00:01:34]} Nf6
{[%clk 01:28:26]} {[%emt 00:00:38]} 5. e3 {[%clk 01:15:07]} {[%emt 00:10:51]}
Bg7 {[%clk 01:28:10]} {[%emt 00:00:46]} 6. Nge2 {[%clk 01:09:47]} {[%emt
00:05:49]} d5 {[%clk 01:21:29]} {[%emt 00:07:12]} 7. cxd5 {[%clk 01:05:18]}
{[%emt 00:04:59]} Nxd5 {[%clk 01:21:28]} {[%emt 00:00:31]} 8. Nxd5 {[%clk
01:05:32]} {[%emt 00:00:15]} Qxd5 {[%clk 01:21:51]} {[%emt 00:00:07]} 9. Nc3
{[%clk 01:05:52]} {[%emt 00:00:10]} Qf5 {[%clk 01:19:37]} {[%emt 00:02:44]} 10.
b4 {[%clk 01:05:45]} {[%emt 00:00:37]} O-O {[%clk 01:14:41]} {[%emt 00:05:26]}
11. bxc5 {[%clk 00:59:27]} {[%emt 00:06:48]} Bxc3 {[%clk 01:13:10]} {[%emt
00:02:01]} 12. dxc3 {[%clk 00:59:54]} {[%emt 00:00:02]} Rd8 {[%clk 01:13:09]}
{[%emt 00:00:31]} 13. Qb3 {[%clk 00:58:42]} {[%emt 00:01:43]} Ne5 {[%clk
01:11:48]} {[%emt 00:01:51]} 14. c4 {[%clk 00:58:32]} {[%emt 00:00:40]} Bd7
{[%clk 00:59:54]} {[%emt 00:12:24]} 15. Be2 {[%clk 00:58:01]} {[%emt 00:01:00]}
Bc6 {[%clk 00:58:55]} {[%emt 00:01:29]} 16. O-O {[%clk 00:58:05]} {[%emt
00:00:25]} Qe4 {[%clk 00:56:22]} {[%emt 00:03:04]} 17. f3 {[%clk 00:58:30]}
{[%emt 00:00:05]} Qxh4 {[%clk 00:56:42]} {[%emt 00:00:10]} 18. Qc3 {[%clk
00:47:33]} {[%emt 00:11:26]} Qg3 {[%clk 00:55:06]} {[%emt 00:02:07]} 19. Qe1
{[%clk 00:38:30]} {[%emt 00:09:33]} Qxe1 {[%clk 00:53:49]} {[%emt 00:01:47]} 20.
Rxe1 {[%clk 00:38:58]} {[%emt 00:00:02]} Nd3 {[%clk 00:52:59]} {[%emt
00:01:20]} 21. Bxd3 {[%clk 00:34:07]} {[%emt 00:05:21]} Rxd3 {[%clk 00:53:18]}
{[%emt 00:00:11]} 22. e4 {[%clk 00:33:53]} {[%emt 00:00:44]} Rad8 {[%clk
00:45:27]} {[%emt 00:08:22]} 23. Bb2 {[%clk 00:24:14]} {[%emt 00:10:09]} h5
{[%clk 00:41:44]} {[%emt 00:04:13]} 24. Rac1 {[%clk 00:23:31]} {[%emt
00:01:12]} Kh7 {[%clk 00:36:13]} {[%emt 00:06:01]} 25. Bc3 {[%clk 00:23:21]}
{[%emt 00:00:39]} g5 {[%clk 00:35:44]} {[%emt 00:00:59]} 26. Kf2 {[%clk
00:23:49]} {[%emt 00:00:02]} Kg6 {[%clk 00:34:38]} {[%emt 00:01:37]} 27. Re3
{[%clk 00:23:11]} {[%emt 00:01:08]} Rxe3 {[%clk 00:32:45]} {[%emt 00:02:23]} 28.
Kxe3 {[%clk 00:23:38]} {[%emt 00:00:03]} h4 {[%clk 00:32:55]} {[%emt 00:00:21]}
29. a4 {[%clk 00:13:54]} {[%emt 00:10:13]} f6 {[%clk 00:31:31]} {[%emt
00:01:53]} 30. a5 {[%clk 00:14:19]} {[%emt 00:00:06]} a6 {[%clk 00:31:36]}
{[%emt 00:00:26]} 31. Be1 {[%clk 00:11:40]} {[%emt 00:03:08]} e5 {[%clk
00:29:17]} {[%emt 00:02:49]} 32. Ke2 {[%clk 00:06:47]} {[%emt 00:05:23]} f5
{[%clk 00:24:39]} {[%emt 00:05:08]} 33. exf5+ {[%clk 00:06:10]} {[%emt
00:01:07]} Kxf5 {[%clk 00:25:05]} {[%emt 00:00:04]} 34. Bd2 {[%clk 00:02:53]}
{[%emt 00:03:47]} e4 {[%clk 00:20:55]} {[%emt 00:04:40]} 35. Be3 {[%clk
00:02:43]} {[%emt 00:00:39]} Kg6 {[%clk 00:14:08]} {[%emt 00:07:17]} 36. f4
{[%clk 00:02:08]} {[%emt 00:01:05]} g4 {[%clk 00:12:47]} {[%emt 00:01:51]} 37.
Bf2 {[%clk 00:00:31]} {[%emt 00:02:08]} g3 {[%clk 00:11:21]} {[%emt 00:01:55]}
38. Be3 {[%clk 00:01:00]} Kf5 {[%clk 00:11:26]} {[%emt 00:00:24]} 39. Rh1
{[%clk 00:01:11]} {[%emt 00:00:19]} Kg4 {[%clk 00:09:45]} {[%emt 00:02:11]} 40.
f5 {[%clk 00:01:32]} {[%emt 00:00:09]} Rf8 {[%clk 00:08:09]} {[%emt 00:02:05]}
41. Rd1 {[%clk 00:01:51]} {[%emt 00:00:12]} Rxf5 {[%clk 00:04:32]} {[%emt
00:04:07]} 42. Rd6 {[%clk 00:01:02]} {[%emt 00:01:19]} h3 {[%clk 00:04:11]}
{[%emt 00:00:51]} 43. Rg6+ {[%clk 00:01:00]} {[%emt 00:00:31]} Kh4 {[%clk
00:04:28]} {[%emt 00:00:13]} 44. gxh3 {[%clk 00:23:13]} {[%emt 00:08:17]} Kxh3
{[%clk 00:34:28]} {[%emt 00:00:31]} 45. Rh6+ {[%clk 00:21:18]} {[%emt
00:02:26]} Kg2 {[%clk 00:34:45]} {[%emt 00:00:13]} 46. Rh4 {[%clk 00:21:17]}
{[%emt 00:00:31]} Rf1 {[%clk 00:29:31]} {[%emt 00:05:44]} 47. Rh7 {[%clk
00:19:05]} {[%emt 00:02:42]} Rb1 {[%clk 00:27:04]} {[%emt 00:02:57]} 48. Bd4
{[%clk 00:17:58]} {[%emt 00:01:38]} Rb3 {[%clk 00:26:44]} {[%emt 00:00:50]} 49.
Re7 {[%clk 00:17:31]} {[%emt 00:00:57]} Ra3 {[%clk 00:26:36]} {[%emt 00:00:38]}
50. Rg7 {[%clk 00:17:07]} {[%emt 00:00:54]} Rxa5 {[%clk 00:26:30]} {[%emt
00:00:36]} 51. Be5 {[%clk 00:16:50]} {[%emt 00:00:46]} Ra2+ {[%clk 00:26:48]}
{[%emt 00:00:12]} 52. Ke1 {[%clk 00:13:16]} {[%emt 00:04:04]} Ra3 {[%clk
00:27:13]} {[%emt 00:00:05]} 53. Rg8 {[%clk 00:13:25]} {[%emt 00:00:21]} a5
{[%clk 00:27:22]} {[%emt 00:00:21]} 54. Ke2 {[%clk 00:13:44]} {[%emt 00:00:11]}
a4 {[%clk 00:27:40]} {[%emt 00:00:12]} 55. Ra8 {[%clk 00:13:53]} {[%emt
00:00:21]} Rd3 {[%clk 00:27:24]} {[%emt 00:00:46]} 56. Ra5 {[%clk 00:13:55]}
{[%emt 00:00:28]} Bd7 {[%clk 00:27:25]} {[%emt 00:00:29]} 0-1

[Event "19th Rochefort Chess Festival - Masters"]
[Site "Rochefort, France"]
[Date "2020.02.26"]
[Round "7.4"]
[White "Colin, Vincent"]
[Black "Burmakin, Vladimir"]
[Result "1-0"]
[TimeControl "1h30/40 - 30' + [30'']"]
[WhiteElo "2359"]
[BlackElo "2514"]

1. e4 {[%clk 01:30:56]} {[%emt 00:00:02]} d5 {[%clk 01:30:28]} {[%emt
00:00:33]} 2. exd5 {[%clk 01:30:27]} {[%emt 00:00:59]} Qxd5 {[%clk 01:30:55]}
{[%emt 00:00:02]} 3. Nf3 {[%clk 01:30:49]} {[%emt 00:00:08]} Nf6 {[%clk
01:31:17]} {[%emt 00:00:08]} 4. Be2 {[%clk 01:30:44]} {[%emt 00:00:35]} c6
{[%clk 01:30:48]} {[%emt 00:00:59]} 5. O-O {[%clk 01:30:12]} {[%emt 00:01:02]}
Bf5 {[%clk 01:31:01]} {[%emt 00:00:17]} 6. b4 {[%clk 01:27:46]} {[%emt
00:02:57]} e6 {[%clk 01:31:19]} {[%emt 00:00:11]} 7. b5 {[%clk 01:24:16]}
{[%emt 00:04:00]} Be7 {[%clk 01:31:33]} {[%emt 00:00:15]} 8. Nc3 {[%clk
01:23:21]} {[%emt 00:01:26]} Qd8 {[%clk 01:31:17]} {[%emt 00:00:46]} 9. Nh4
{[%clk 01:21:52]} {[%emt 00:01:58]} Bg6 {[%clk 01:31:43]} {[%emt 00:00:04]} 10.
Nxg6 {[%clk 01:18:39]} {[%emt 00:03:43]} hxg6 {[%clk 01:32:11]} {[%emt
00:00:02]} 11. Rb1 {[%clk 01:18:40]} {[%emt 00:00:29]} Qc7 {[%clk 01:32:09]}
{[%emt 00:00:32]} 12. g3 {[%clk 01:18:51]} {[%emt 00:00:19]} O-O {[%clk
01:30:07]} {[%emt 00:02:31]} 13. Bf3 {[%clk 01:12:05]} {[%emt 00:07:16]} Nbd7
{[%clk 01:15:23]} {[%emt 00:15:14]} 14. Qe2 {[%clk 01:10:38]} {[%emt 00:01:57]}
cxb5 {[%clk 01:03:52]} {[%emt 00:12:02]} 15. Rxb5 {[%clk 01:02:06]} {[%emt
00:09:01]} Rab8 {[%clk 01:04:05]} {[%emt 00:00:17]} 16. a4 {[%clk 01:02:15]}
{[%emt 00:00:21]} Rfc8 {[%clk 00:57:16]} {[%emt 00:07:19]} 17. Re1 {[%clk
01:01:37]} {[%emt 00:01:09]} b6 {[%clk 00:55:18]} {[%emt 00:02:28]} 18. Rb1
{[%clk 01:00:36]} {[%emt 00:01:31]} Qc4 {[%clk 00:47:52]} {[%emt 00:07:56]} 19.
Bb2 {[%clk 00:59:50]} {[%emt 00:01:16]} Qxe2 {[%clk 00:47:05]} {[%emt
00:01:17]} 20. Bxe2 {[%clk 00:59:31]} {[%emt 00:00:49]} Bb4 {[%clk 00:43:49]}
{[%emt 00:03:46]} 21. Nb5 {[%clk 00:56:16]} {[%emt 00:03:46]} Bxd2 {[%clk
00:43:41]} {[%emt 00:00:37]} 22. Red1 {[%clk 00:56:20]} {[%emt 00:00:25]} Ba5
{[%clk 00:43:18]} {[%emt 00:00:53]} 23. Nxa7 {[%clk 00:49:45]} {[%emt
00:07:05]} Rxc2 {[%clk 00:41:30]} {[%emt 00:02:18]} 24. Bb5 {[%clk 00:48:11]}
{[%emt 00:02:05]} Rb7 {[%clk 00:37:29]} {[%emt 00:04:31]} 25. Nc6 {[%clk
00:47:31]} {[%emt 00:01:10]} Bc3 {[%clk 00:37:08]} {[%emt 00:00:52]} 26. Ba3
{[%clk 00:46:46]} {[%emt 00:01:15]} Nd5 {[%clk 00:29:23]} {[%emt 00:08:14]} 27.
Rbc1 {[%clk 00:36:05]} {[%emt 00:11:12]} Rxc1 {[%clk 00:29:23]} {[%emt
00:00:30]} 28. Rxc1 {[%clk 00:36:14]} {[%emt 00:00:22]} Bf6 {[%clk 00:25:58]}
{[%emt 00:03:54]} 29. Ba6 {[%clk 00:34:39]} {[%emt 00:02:05]} Rc7 {[%clk
00:19:45]} {[%emt 00:06:43]} 30. Bd6 {[%clk 00:34:31]} {[%emt 00:00:37]} Nc5
{[%clk 00:18:42]} {[%emt 00:01:34]} 31. Bxc7 {[%clk 00:33:11]} {[%emt
00:01:50]} Nxc7 {[%clk 00:19:11]} {[%emt 00:00:01]} 32. Bb5 {[%clk 00:31:21]}
{[%emt 00:02:19]} g5 {[%clk 00:19:27]} {[%emt 00:00:14]} 33. Na7 {[%clk
00:29:48]} {[%emt 00:02:04]} Bd4 {[%clk 00:19:33]} {[%emt 00:00:24]} 34. Rc4
{[%clk 00:27:58]} {[%emt 00:02:21]} e5 {[%clk 00:19:25]} {[%emt 00:00:37]} 35.
Nc6 {[%clk 00:28:15]} {[%emt 00:00:13]} Nxb5 {[%clk 00:19:17]} {[%emt
00:00:37]} 36. axb5 {[%clk 00:28:29]} {[%emt 00:00:17]} Ne6 {[%clk 00:19:43]}
{[%emt 00:00:05]} 37. Kg2 {[%clk 00:26:24]} {[%emt 00:02:35]} f6 {[%clk
00:19:26]} {[%emt 00:00:47]} 38. Ra4 {[%clk 00:24:32]} {[%emt 00:02:22]} Bc5
{[%clk 00:19:29]} {[%emt 00:00:27]} 39. Ra7 {[%clk 00:24:43]} {[%emt 00:00:20]}
g4 {[%clk 00:18:35]} {[%emt 00:01:23]} 40. f3 {[%clk 00:22:50]} {[%emt
00:02:23]} gxf3+ {[%clk 00:19:01]} {[%emt 00:00:04]} 41. Kxf3 {[%clk 00:23:16]}
{[%emt 00:00:04]} Kh7 {[%clk 00:14:25]} {[%emt 00:05:07]} 42. Ke4 {[%clk
00:18:43]} {[%emt 00:05:02]} Ng5+ {[%clk 00:13:32]} {[%emt 00:01:23]} 43. Kd5
{[%clk 00:15:51]} {[%emt 00:03:21]} Nf3 {[%clk 00:14:01]} {[%emt 00:00:03]} 44.
Nb8 {[%clk 00:03:34]} {[%emt 00:12:47]} Nd4 {[%clk 00:13:59]} {[%emt 00:00:32]}
45. Kc4 {[%clk 00:03:49]} {[%emt 00:00:15]} Nc2 {[%clk 00:12:34]} {[%emt
00:01:55]} 46. Nd7 {[%clk 00:29:03]} {[%emt 00:05:16]} Na3+ {[%clk 00:42:59]}
{[%emt 00:00:05]} 47. Rxa3 {[%clk 00:29:25]} {[%emt 00:00:08]} Bxa3 {[%clk
00:43:27]} {[%emt 00:00:03]} 48. Nxb6 {[%clk 00:29:48]} {[%emt 00:00:07]} e4
{[%clk 00:42:45]} {[%emt 00:01:12]} 49. Nc8 {[%clk 00:20:50]} {[%emt 00:09:28]}
Bb2 {[%clk 00:42:01]} {[%emt 00:01:14]} 50. Nd6 {[%clk 00:20:24]} {[%emt
00:00:56]} Kg6 {[%clk 00:42:02]} {[%emt 00:00:29]} 51. b6 {[%clk 00:18:53]}
{[%emt 00:02:02]} e3 {[%clk 00:41:59]} {[%emt 00:00:33]} 52. b7 {[%clk
00:17:07]} {[%emt 00:02:16]} e2 {[%clk 00:42:25]} {[%emt 00:00:04]} 53. b8=Q
{[%clk 00:17:32]} {[%emt 00:00:05]} e1=Q {[%clk 00:42:51]} {[%emt 00:00:04]} 54.
Qxb2 {[%clk 00:17:54]} {[%emt 00:00:08]} Qf1+ {[%clk 00:43:17]} {[%emt
00:00:04]} 55. Kc5 {[%clk 00:18:16]} {[%emt 00:00:08]} Qg1+ {[%clk 00:43:37]}
{[%emt 00:00:09]} 56. Kd5 {[%clk 00:17:18]} {[%emt 00:01:29]} Kg5 {[%clk
00:43:50]} {[%emt 00:00:17]} 57. Qe2 {[%clk 00:16:57]} {[%emt 00:00:51]} f5
{[%clk 00:42:47]} {[%emt 00:01:33]} 58. h4 {[%clk 00:16:56]} {[%emt 00:00:30]}
Kg6 {[%clk 00:43:07]} {[%emt 00:00:09]} 59. Qe6+ {[%emt 00:00:09]} 1-0

[Event "19th Rochefort Chess Festival - Masters"]
[Site "Rochefort, France"]
[Date "2020.02.26"]
[Round "7.2"]
[White "Korneev, Oleg"]
[Black "Gareyev, Timur"]
[Result "1/2-1/2"]
[TimeControl "1h30/40 - 30' + [30'']"]
[WhiteElo "2505"]
[BlackElo "2607"]

1. e4 {[%clk 01:22:39]} {[%emt 00:08:20]} e5 {[%clk 01:30:59]} {[%emt
00:00:03]} 2. Nf3 {[%clk 01:23:03]} {[%emt 00:00:05]} Nc6 {[%clk 01:31:25]}
{[%emt 00:00:04]} 3. Bc4 {[%clk 01:23:00]} {[%emt 00:00:33]} Nf6 {[%clk
01:31:42]} {[%emt 00:00:14]} 4. d3 {[%clk 01:17:58]} {[%emt 00:05:32]} h6
{[%clk 01:32:05]} 5. c3 {[%clk 01:17:58]} d6 {[%clk 01:32:05]} 6. Nbd2 {[%clk
01:17:58]} g6 {[%clk 01:32:05]} 7. O-O {[%clk 01:17:58]} Bg7 {[%clk 01:28:30]}
{[%emt 00:08:43]} 8. Bb3 {[%clk 01:15:05]} O-O {[%clk 01:28:16]} {[%emt
00:02:04]} 9. Re1 {[%emt 00:14:34]} Re8 {[%emt 00:05:34]} 10. h3 {[%clk
01:07:32]} Be6 {[%clk 01:09:51]} {[%emt 00:07:50]} 11. d4 {[%clk 00:56:05]}
{[%emt 00:11:57]} exd4 {[%clk 01:02:32]} {[%emt 00:07:50]} 12. cxd4 {[%clk
00:55:48]} {[%emt 00:00:47]} Bxb3 {[%clk 01:02:55]} {[%emt 00:00:07]} 13. Qxb3
{[%clk 00:55:47]} {[%emt 00:00:30]} a5 {[%clk 01:01:43]} {[%emt 00:01:42]} 14.
a3 {[%clk 00:54:21]} {[%emt 00:01:57]} Nd7 {[%clk 00:50:07]} {[%emt 00:12:05]}
15. d5 {[%clk 00:48:52]} {[%emt 00:05:59]} Nc5 {[%clk 00:28:20]} {[%emt
00:22:17]} 16. Qc2 {[%clk 00:48:52]} {[%emt 00:00:30]} Nb8 {[%clk 00:25:08]}
{[%emt 00:03:42]} 17. Nb3 {[%clk 00:41:20]} {[%emt 00:08:02]} Nxb3 {[%clk
00:25:18]} {[%emt 00:00:20]} 18. Qxb3 {[%clk 00:41:47]} {[%emt 00:00:03]} Nd7
{[%clk 00:25:32]} {[%emt 00:00:15]} 19. Bd2 {[%clk 00:40:26]} {[%emt 00:01:51]}
Nc5 {[%clk 00:25:51]} {[%emt 00:00:11]} 20. Qc2 {[%clk 00:40:44]} {[%emt
00:00:13]} Qd7 {[%clk 00:25:44]} {[%emt 00:00:36]} 21. Rab1 {[%clk 00:31:25]}
{[%emt 00:09:49]} Qa4 {[%clk 00:19:37]} {[%emt 00:06:37]} 22. Qxa4 {[%clk
00:27:50]} {[%emt 00:04:05]} Nxa4 {[%clk 00:20:05]} {[%emt 00:00:02]} 23. b4
{[%clk 00:28:12]} {[%emt 00:00:08]} Nc3 {[%clk 00:16:46]} {[%emt 00:03:48]} 24.
Bxc3 {[%clk 00:28:29]} {[%emt 00:00:13]} Bxc3 {[%clk 00:17:12]} {[%emt
00:00:04]} 25. Re3 {[%clk 00:26:22]} {[%emt 00:02:37]} axb4 {[%clk 00:17:38]}
{[%emt 00:00:05]} 26. axb4 {[%clk 00:26:51]} {[%emt 00:00:02]} Bf6 {[%clk
00:13:47]} {[%emt 00:04:21]} 27. b5 {[%clk 00:23:52]} {[%emt 00:03:29]} b6
{[%clk 00:13:55]} {[%emt 00:00:22]} 28. Rc1 {[%clk 00:24:05]} {[%emt 00:00:16]}
Re7 {[%clk 00:12:46]} {[%emt 00:01:40]} 29. Rc4 {[%clk 00:22:12]} {[%emt
00:02:22]} Ra2 {[%clk 00:07:23]} {[%emt 00:05:52]} 30. Rb3 {[%clk 00:19:50]}
{[%emt 00:02:53]} Ra1+ {[%clk 00:02:50]} {[%emt 00:05:03]} 31. Kh2 {[%clk
00:20:08]} {[%emt 00:00:11]} Ra2 {[%clk 00:03:19]} {[%emt 00:00:01]} 32. Kg1
{[%clk 00:18:53]} {[%emt 00:01:45]} Ra1+ {[%clk 00:03:48]} {[%emt 00:00:01]} 33.
Kh2 {[%clk 00:19:18]} {[%emt 00:00:05]} Ra2 {[%clk 00:04:11]} {[%emt 00:00:07]}
1/2-1/2